Cogmind - Beta 10.2 @@@ ROGUE MODE // 2021.04.11 @ 11:30:49 Player: Midas Result: Destroyed by B-75 Beast with Heavy Plasma Cannon Performance ------------- Evolutions (4) 2000 Regions Visited (7) 1400 Robots Destroyed (12) 60 Value Destroyed (197) 197 Prototype IDs (2) 40 Alien Tech Used (0) 0 Bonus (283) 283 TOTAL SCORE: 3980 Bonus ------- Follower Combat Kills 283 Cogmind --------- Core Integrity 0/850 Matter 300/300 Energy 99/100 System Corruption 6% Temperature Cool (12) Movement Core (50) Location -6/Extension Parts ------- > --- POWER (2) -------- (None) > --- PROPULSION (5) --- (None) > --- UTILITY (6) ------ Terrain Scan Processor > --- WEAPON (2) ------- (None) > --- INVENTORY (4) ---- Gravmag Array Recalibrator Recalibrator Peak State ------------ > --- POWER ------------ Light Ion Engine > --- PROPULSION ------- Gravmag Array Gravmag Array > --- UTILITY ---------- Weight Redist. System Terrain Scanner Terrain Scan Processor Maneuvering Thrusters > --- WEAPON ----------- (None) > --- INVENTORY -------- Small Storage Unit Recalibrator Recalibrator [Rating: 29] Favorites ----------- Power Light Ion Engine Engine Light Ion Engine Propulsion Improved Flight Unit Treads Light Treads Leg Aluminum Leg Hover Unit Gravmag Array Flight Unit Improved Flight Unit Utility Weight Redist. System Device Weight Redist. System Storage Small Storage Unit Processor Terrain Scan Processor Weapon Light Assault Rifle Energy Gun Pulse Rifle Ballistic Gun Light Assault Rifle Build | -11 -10 -9 -9 -8 -7 -6 -6 ------- Run | Scr Mat Mat Min Mat Fac Fac Ext Slots Evolved 8 | . . 2 . 2 2 2 . Power 1 | . . . . 1 . . . Propulsion 3 | . . 1 . . 1 1 . Utility 4 | . . 1 . 1 1 1 . Weapon . | . . . . . . . . Parts Attached 38 | . 6 8 1 6 4 4 9 Power 10 | . 1 1 1 3 1 1 2 Engine 10 | . 1 1 1 3 1 1 2 Core . | . . . . . . . . Reactor . | . . . . . . . . Propulsion 13 | . 1 5 . 2 1 . 4 Treads 1 | . 1 . . . . . . Leg . | . . . . . . . . Wheel . | . . . . . . . . Hover 7 | . . . . 2 1 . 4 Flight 5 | . . 5 . . . . . Utility 10 | . 1 . . 1 2 3 3 Device 6 | . . . . . 2 2 2 Storage 2 | . 1 . . . . 1 . Processor 2 | . . . . 1 . . 1 Hackware . | . . . . . . . . Protection . | . . . . . . . . Artifact . | . . . . . . . . Weapon 5 | . 3 2 . . . . . Energy Gun 2 | . . 2 . . . . . Energy Cannon . | . . . . . . . . Ballistic Gun 3 | . 3 . . . . . . Ballistic Cannon . | . . . . . . . . Launcher . | . . . . . . . . Special Weapon . | . . . . . . . . Impact Weapon . | . . . . . . . . Slashing Weapon . | . . . . . . . . Piercing Weapon . | . . . . . . . . Special Melee Weapon . | . . . . . . . . Unidentified Prototypes 2 | . . 1 . 1 . . . Parts Lost 29 | . 3 5 . 3 . 2 16 Power 6 | . 1 . . 1 . 1 3 Propulsion 13 | . 1 3 . 2 . 1 6 Utility 7 | . . . . . . . 7 Weapon 3 | . 1 2 . . . . . Highest Loss Streak 7 | . 2 4 . 2 . 2 7 Average Slot Usage (%) 42 | . 77 64 33 30 28 41 28 Engine 6 | . 11 11 11 9 7 5 2 Treads 1 | . 6 1 . . . . . Leg 4 | . 21 1 . . . . . Hover 5 | . . . . 3 8 13 9 Flight 6 | . . 22 22 16 7 1 . Device 5 | . . . . . 4 19 10 Storage 3 | . 13 10 . . . 1 . Processor 1 | . . . . 1 . . 3 Ballistic Gun 5 | . 24 13 . . . . . Naked Turns . | . . . . . . . . Heaviest Build 17 | 12 12 17 10 10 4 14 14 Greatest Support 62 | 20 20 20 12 12 12 17 62 Greatest Overweight (x) 3 | . . 1 . 3 . . 1 Average Overweight (x) . | . . . . . . . . Largest Inventory Capacity 6 | 6 6 6 4 4 4 4 4 Average Capacity 4 | 6 5 5 4 4 4 4 4 Most Carried 6 | 6 6 6 2 3 4 4 4 Average Carried 3 | 6 4 3 2 2 3 3 3 Final Capacity 6 | 6 6 4 4 4 4 4 4 Final Carried 6 | 6 2 2 2 2 4 3 4 Class Distribution -------------------- 82% | Mutant 17% | Sprinter Dominant Class ---------------- Mutant | -10/Materials Mutant | -9/Materials Sprinter | -9/Mines Sprinter | -8/Materials Mutant | -7/Factory Mutant | -6/Factory Mutant | -6/Extension Resources | -11 -10 -9 -9 -8 -7 -6 -6 ----------- Run | Scr Mat Mat Min Mat Fac Fac Ext Matter Collected 532 | 200 87 7 113 . . . 125 Remotely . | . . . . . . . . Salvage Created 258 | . 198 47 . . . . 13 Parts 23 | . 14 5 . . . . 4 Haulers Intercepted . | . . . . . . . . Recyclers Shooed . | . . . . . . . . Parts Field Recycled . | . . . . . . . . Retrieved Matter . | . . . . . . . . Parts Self-Destructed . | . . . . . . . . Prevented . | . . . . . . . . Kills | -11 -10 -9 -9 -8 -7 -6 -6 ------- Run | Scr Mat Mat Min Mat Fac Fac Ext Combat Hostiles Destroyed 11 | . 8 3 . . . . . Melee 1 | . . 1 . . . . . Guns 10 | . 8 2 . . . . . Classes Destroyed 3 | . 2 . . . . . 1 Builder 1 | . . . . . . . 1 Swarmer 8 | . 5 3 . . . . . Grunt 3 | . 3 . . . . . . Best Kill Streak 3 | . 3 2 . . . . 1 Combat Bots Only 3 | . 3 2 . . . . . Max Kills in Single Turn 2 | . 2 1 . . . . 1 Gunslinging 1 | . 1 . . . . . . Exploded . | . . . . . . . . Melee 1 | . . 1 . . . . . Uniques/NPCs Destroyed . | . . . . . . . . Combat | -11 -10 -9 -9 -8 -7 -6 -6 -------- Run | Scr Mat Mat Min Mat Fac Fac Ext Damage Taken 3566 | . 594 417 233 373 19 57 1873 Core 1429 | . 110 127 137 182 . 22 851 Absorbed by Shields 80 | . . . . . . . 80 Core Remaining (%) 71 | 100 56 . 34 66 100 . . Volleys Fired 54 | . 39 15 . . . . . Largest 2 | . 2 2 . . . . . Hottest 63 | . 40 63 . . . . . Shots Fired 74 | . 51 23 . . . . . Gun 74 | . 51 23 . . . . . Cannon . | . . . . . . . . Launcher . | . . . . . . . . Special . | . . . . . . . . Kinetic 69 | . 51 18 . . . . . Thermal 5 | . . 5 . . . . . Explosive . | . . . . . . . . Electromagnetic . | . . . . . . . . Robot Hit Streak 7 | . 7 4 . . . . . Robot Miss Streak 4 | . 4 3 . . . . . Penetration Max . | . . . . . . . . Secondary Targets 2 | . 2 . . . . . . Max Gunslinging Chain 1 | . 1 . . . . . . Shots Hit Robots 45 | . 33 12 . . . . . Core Hits 31 | . 14 5 . . . . 12 Critical Hits 1 | . 1 . . . . . . Critical Kills . | . . . . . . . . Critical Parts Destroyed 1 | . 1 . . . . . . Melee Attacks . | . . . . . . . . Impact . | . . . . . . . . Slashing . | . . . . . . . . Piercing . | . . . . . . . . Sneak Attacks . | . . . . . . . . Combat Hostiles . | . . . . . . . . Follow-up Attacks . | . . . . . . . . Damage Inflicted 572 | . 286 137 . . . . 149 Guns 421 | . 286 135 . . . . . Cannons . | . . . . . . . . Explosions . | . . . . . . . . Melee . | . . . . . . . . Ramming 151 | . . 2 . . . . 149 Kinetic 368 | . 286 82 . . . . . Thermal 53 | . . 53 . . . . . Explosive . | . . . . . . . . Electromagnetic . | . . . . . . . . Impact . | . . . . . . . . Slashing . | . . . . . . . . Piercing . | . . . . . . . . Highest Corruption 6 | . . . . 1 1 . 6 Average Corruption 3 | . . . . 1 1 . 4 Corruption Purged . | . . . . . . . . Effects 13 | . . . . . . . 13 Message Errors 1 | . . . . . . . 1 Matter Fused 6 | . . . . . . . 6 Energy Discharges 2 | . . . . . . . 2 Data Loss (minor) 3 | . . . . . . . 3 Data Loss (major) 1 | . . . . . . . 1 Overload Shots . | . . . . . . . . Overflow Damage 11 | . . . . . . . 11 Projectiles . | . . . . . . . . Explosions . | . . . . . . . . Melee 11 | . . . . . . . 11 Knockbacks 1 | . . . . . . . 1 Impact 1 | . . . . . . . 1 Kinetic . | . . . . . . . . Secondary . | . . . . . . . . Self-Inflicted Damage 71 | . . 1 . . . . 70 Shots . | . . . . . . . . Rammed 21 | . . 1 . . . . 20 Targets Rammed 21 | . . 1 . . . . 20 Kicked . | . . . . . . . . Crushed . | . . . . . . . . Highest Temperature 60 | . 6 60 21 4 . . 1 Average Temperature 16 | . 3 28 12 4 . . 1 Received Heat Transfer 791 | . 138 30 20 153 6 . 444 Siege Activations . | . . . . . . . . Robots Corrupted . | . . . . . . . . Combat Hostiles . | . . . . . . . . Parts Fried . | . . . . . . . . Impact Corruptions 2 | . . . . . . . 2 Robots Melted . | . . . . . . . . Combat Hostiles . | . . . . . . . . Parts Melted . | . . . . . . . . Heat Transferred 111 | . . 111 . . . . . Parts Sabotaged . | . . . . . . . . Parts Stolen . | . . . . . . . . Parts Stripped . | . . . . . . . . Power Chain Reactions . | . . . . . . . . Missiles Intercepted . | . . . . . . . . Alert | -11 -10 -9 -9 -8 -7 -6 -6 ------- Run | Scr Mat Mat Min Mat Fac Fac Ext Peak Influence 331 | . 225 249 141 294 193 134 331 Initial 133 | . . 94 96 54 133 94 65 Average 159 | . 173 120 107 152 157 128 180 Maximum Alert Level 1 | . 1 1 . 1 . . 1 Low Security (%) 66 | 100 38 88 100 69 100 100 53 Level 1 33 | . 61 11 . 30 . . 46 Level 2 . | . . . . . . . . Level 3 . | . . . . . . . . Level 4 . | . . . . . . . . Level 5 . | . . . . . . . . High Security . | . . . . . . . . Max Security . | . . . . . . . . Squads Dispatched 5 | . 1 . . 1 . 1 2 Investigation 1 | . . . . . . . 1 Extermination . | . . . . . . . . Reinforcement 4 | . 1 . . 1 . 1 1 Assault . | . . . . . . . . Garrison . | . . . . . . . . Intercept . | . . . . . . . . Construction Impeded . | . . . . . . . . Haulers Reinforced . | . . . . . . . . Stealth | -11 -10 -9 -9 -8 -7 -6 -6 --------- Run | Scr Mat Mat Min Mat Fac Fac Ext Distress Signals 5 | . 1 1 . 1 . . 2 Communications Jammed . | . . . . . . . . Distress Signals . | . . . . . . . . Times Spotted 114 | . 12 17 25 22 3 2 33 Peak Tracking Total 20 | . 7 11 20 14 2 1 8 Tactical Retreats 20 | . 1 2 3 4 . . 10 Traps | -11 -10 -9 -9 -8 -7 -6 -6 ------- Run | Scr Mat Mat Min Mat Fac Fac Ext Traps Triggered 6 | . . . . 1 2 . 3 Indirectly . | . . . . . . . . Trap Hack Attempts . | . . . . . . . . Triggered . | . . . . . . . . Disarmed . | . . . . . . . . Reprogrammed . | . . . . . . . . Reused . | . . . . . . . . Traps Extracted . | . . . . . . . . Installed . | . . . . . . . . Triggered . | . . . . . . . . Machines | -11 -10 -9 -9 -8 -7 -6 -6 ---------- Run | Scr Mat Mat Min Mat Fac Fac Ext Machines Disabled 1 | . . . . . . . 1 Max in Single Turn . | . . . . . . . . Machines Sabotaged . | . . . . . . . . Garrisons Compromised . | . . . . . . . . Overloaded Fab Kills . | . . . . . . . . Fab Network Shutdowns . | . . . . . . . . Hacking | -11 -10 -9 -9 -8 -7 -6 -6 --------- Run | Scr Mat Mat Min Mat Fac Fac Ext Machines Accessed 2 | . . . . . . . 2 Terminals 2 | . . . . . . . 2 Fabricators . | . . . . . . . . Repair Stations . | . . . . . . . . Recycling Units . | . . . . . . . . Scanalyzers . | . . . . . . . . Garrison Access . | . . . . . . . . Total Hacks 4 | . . . . . . . 4 Successful 2 | . . . . . . . 2 Failed 2 | . . . . . . . 2 Catastrophic . | . . . . . . . . Database Lockouts . | . . . . . . . . Manual . | . . . . . . . . Terminals 4 | . . . . . . . 4 Fabricators . | . . . . . . . . Repair Stations . | . . . . . . . . Recycling Units . | . . . . . . . . Scanalyzers . | . . . . . . . . Garrison Access . | . . . . . . . . Terminal Hacks 2 | . . . . . . . 2 Open Door 2 | . . . . . . . 2 Fabricator Hacks . | . . . . . . . . Repair Station Hacks . | . . . . . . . . Recycling Unit Hacks . | . . . . . . . . Scanalyzer . | . . . . . . . . Garrison Access Hacks . | . . . . . . . . Unauthorized Hacks . | . . . . . . . . Terminals . | . . . . . . . . Fabricators . | . . . . . . . . Repair Stations . | . . . . . . . . Recycling Units . | . . . . . . . . Scanalyzers . | . . . . . . . . Garrison Access . | . . . . . . . . Data Cores Recovered . | . . . . . . . . Used . | . . . . . . . . Hacking Detections 1 | . . . . . . . 1 Full Trace Events 1 | . . . . . . . 1 Feedback Events . | . . . . . . . . Feedback Blocked . | . . . . . . . . Robot Schematics Acquired . | . . . . . . . . Robots Built . | . . . . . . . . Matter . | . . . . . . . . Time . | . . . . . . . . Total Robot Build Rating . | . . . . . . . . Part Schematics Acquired . | . . . . . . . . Parts Built . | . . . . . . . . Matter . | . . . . . . . . Time . | . . . . . . . . Total Part Build Rating . | . . . . . . . . Parts Repaired . | . . . . . . . . Time . | . . . . . . . . Parts Recycled . | . . . . . . . . Recycled Matter . | . . . . . . . . Retrieved Matter . | . . . . . . . . Retrieved Components . | . . . . . . . . Parts Scanalyzed . | . . . . . . . . Part Schematics Acquired . | . . . . . . . . Parts Damaged . | . . . . . . . . Bothacking | -11 -10 -9 -9 -8 -7 -6 -6 ------------ Run | Scr Mat Mat Min Mat Fac Fac Ext Used RIF Installer . | . . . . . . . . Robots Hacked . | . . . . . . . . Non-combat . | . . . . . . . . Combat . | . . . . . . . . Robot Hacks Applied . | . . . . . . . . Relay Couplers Released . | . . . . . . . . Robots Rewired . | . . . . . . . . Allies Hacked . | . . . . . . . . Hacks Repelled . | . . . . . . . . Allies | -11 -10 -9 -9 -8 -7 -6 -6 -------- Run | Scr Mat Mat Min Mat Fac Fac Ext Total Allies 2 | . . . . . . . 2 Largest Group 1 | . . . . . . . 1 Highest-Rated Group 156 | . . . . . . . 156 Highest-Rated Ally 156 | . . . . . . . 156 Total Orders . | . . . . . . . . Ally Attacks 19 | . . . . . . . 19 Total Damage 755 | . . . . . . . 755 Kills 8 | . . . . . . . 8 Allies Corrupted . | . . . . . . . . Allies Melted . | . . . . . . . . Intel | -11 -10 -9 -9 -8 -7 -6 -6 ------- Run | Scr Mat Mat Min Mat Fac Fac Ext Robot Analysis Total . | . . . . . . . . Derelict Logs Recovered . | . . . . . . . . Drone Launches . | . . . . . . . . Drone Recoveries . | . . . . . . . . Exploration | -11 -10 -9 -9 -8 -7 -6 -6 ------------- Run | Scr Mat Mat Min Mat Fac Fac Ext Turns Passed 1654 | 3 305 169 103 161 165 110 638 Spaces Moved 2669 | 3 143 233 318 384 398 226 964 Core 424 | . . . . 1 . 8 415 Treads 98 | . 82 16 . . . . . Legs 64 | 3 61 . . . . . . Wheels . | . . . . . . . . Hover 728 | . . . . 16 . 163 549 Flight 1355 | . . 217 318 367 398 55 . Fastest Speed 30 | 120 120 30 32 32 35 35 50 Average Speed 48 | 120 142 42 32 37 35 46 52 Slowest Speed 200 | 120 160 160 32 200 35 50 100 Overloaded Moves . | . . . . . . . . Propulsion Burnouts . | . . . . . . . . Robots Hopped 38 | . . 5 21 8 4 . . Cave-ins Triggered . | . . . . . . . . Exploration Rate (%) 36 | 2 30 31 93 57 17 9 51 Regions Visited 7 Branch Regions 2 Pre-discovered Areas . | . . . . . . . . Known Exits Taken . | . . . . . . . . Unknown Exits Taken 7 | 1 1 1 1 1 1 1 . Scrap Searched 2 | . . . 2 . . . . Spaces Dug . | . . . . . . . . Terrain Destroyed . | . . . . . . . . Melee . | . . . . . . . . Projectile . | . . . . . . . . AOE . | . . . . . . . . Terrain Rammed . | . . . . . . . . Walls Destroyed . | . . . . . . . . Machines Disabled . | . . . . . . . . Actions | -11 -10 -9 -9 -8 -7 -6 -6 --------- Run | Scr Mat Mat Min Mat Fac Fac Ext Total 2911 | 2 201 277 297 391 417 229 1097 Wait 107 | . 13 9 . 6 . . 79 Move 2599 | 2 142 223 287 367 389 225 964 Hop 25 | . . 4 9 8 4 . . Pick Up 13 | . . 8 . 1 1 . 3 Fast Attach 22 | . 1 3 . 4 4 3 7 Attach 12 | . 3 4 . 2 . 1 2 Detach 3 | . . . . 2 1 . . Swap 4 | . 2 1 1 . . . . Drop 12 | . 1 9 . 1 . . 1 Fire 54 | . 39 15 . . . . . Melee . | . . . . . . . . Ram 21 | . . 1 . . . . 20 Kick . | . . . . . . . . Crush . | . . . . . . . . Escape Stasis 39 | . . . . . 18 . 21 Rewire . | . . . . . . . . Trap . | . . . . . . . . Miscellaneous . | . . . . . . . . Route ------- -11/Scrapyard -10/Materials -9/Materials -9/Mines -8/Materials (discovered 3 exits: [*Fac] / [*Sto x2]) -7/Factory -6/Factory -6/Extension History --------- Turn | Location | Event 1 | -11/Scrapyard | Discovered new exit (range 0) 4 | -11/Scrapyard | Entered Materials 296 | -10/Materials | Discovered new exit (range 3) 309 | -10/Materials | Entered another Materials area 309 | -9/Materials | Evolved 2 slots: Propulsion x1, Utility x1 316 | -9/Materials | Build established: Mutant 444 | -9/Materials | Lost 4 parts (2n2w) 469 | -9/Materials | Discovered new exit (range 14) 478 | -9/Materials | Entered Mines 516 | -9/Mines | Assembled infested the area 535 | -9/Mines | Core integrity fell below 50% 577 | -9/Mines | Discovered new exit (range 16) 581 | -9/Mines | Entered Materials 581 | -8/Materials | Evolved 2 slots: Power x1, Utility x1 596 | -8/Materials | Discovered new exit (range 15) 735 | -8/Materials | Discovered new exit (range 3) 737 | -8/Materials | Discovered new exit (range 14) 742 | -8/Materials | Entered Factory 742 | -7/Factory | Evolved 2 slots: Propulsion x1, Utility x1 902 | -7/Factory | Discovered new exit (range 11) 907 | -7/Factory | Entered another Factory area 907 | -6/Factory | Evolved 2 slots: Propulsion x1, Utility x1 925 | -6/Factory | Spotted B-75 Beast 1012 | -6/Factory | Discovered new exit (range 9) 1017 | -6/Factory | Entered Extension 1116 | -6/Extension | Spotted B-75 Beast 1121 | -6/Extension | Spotted B-75 Beast 1188 | -6/Extension | Lost 7 parts (2p2n3u) 1228 | -6/Extension | Core integrity fell below 50% 1400 | -6/Extension | Core integrity fell below 20% 1414 | -6/Extension | Rescued a captive Derelict 1437 | -6/Extension | Lost 6 parts (1p2n3u) 1472 | -6/Extension | Rescued A7 1655 | -6/Extension | Destroyed by B-75 Beast with Heavy Plasma Cannon Last Messages --------------- 01513_ Acquired 61 matter. 01514_ Slug penetrates Wall. 01514_ Gravmag Array destroyed. 01514_ Slug penetrates Wall. 01518_ Door Terminal disabled. 01519_ Slug penetrates A7. 01522_ Slug penetrates Reinforced Barrier. 01529_ A7: "I've done al##MISSION::FAILED##" 01529_ A7 destroyed. 01532_ Slug penetrates Reinforced Barrier. 01537_ U-05 Engineer builds a Wall. 01541_ Slug penetrates Wall. 01541_ Penetrated by Slug. 01544_ Gravmag Array destroyed. 01547_ Penetrated by Slug. 01547_ Terminal disabled. 01563_ System corrupted: Component data lost. 01566_ Dropped Sml. Storage Unit. 01567_ Acquired Gravmag Array. 01606_ R-10 Processor enters Transfer Station. Map ----- +----------------------------------------------------+ | ????##""##????????#$#|##???# #???????????????????? | | ??????????????????###==#???# #???????????????????? | | ????????????????????####???# #???????????????????? | | ???????????????????????????# #???????????????????? | | ???????????????????????????# #???????????????????? | | ???????????????????????????# #???????????????????? | | ???????????????????????????# #???????????????????? | | ???????????????????????????# #???????????????????? | | ???????????????????????????# #???????????????????? | | ???????????????????????????# #???????????????????? | | ???????????????????????????# #???????????????????? | | ???????????????????????????# #???????????????????? | | ???????????????????????????# #???????????????????? | | ????????#??????????????????# #???????????????????? | | ???????????????????????????# #???????????????????? | | ????????????????#??????????# #???????????????????? | | ?????#?????????????????????# #??##??#????????????? | | ???#??#???#??????????????### ### ## ###??????????? | | ?????###?????????????????#" " Y Y "" "????????? | | ??###?????#????#?????????# " " " ???????? | | ???#?#?????????#?????????# R #??????? | | #???????#??#???????#?##??# u #??????? | | ########################## u #??????? | | ??????? | | ???????? | | @ ???????? | | ???????? | | uRk R R % RR ????????? | | #########################; BB BB ????????? | | #????#?#????????????????## BB BB ?????????? | | ?#???#????????#???????#??# ?????????? | | ???##????###??#??????????# ??????????? | | ?#?#?#?#?#?##????#???????# ??????????? | | ????#????#????????#??##??######T#"""##???????????? | | ?#???##????????????????????????##????????????????? | | ???????#?????#???????????????????????????????????? | | | | | | | | | | | | | | | | | | | | | | | | | | | | | +----------------------------------------------------+ Best States ------------- Heat Dissipation 37 Energy Generation 18 Energy Capacity 590 Matter Stores 300 Matter Capacity 300 Sight Range 18 Terrain Scan Range 14 Terrain Scan Density 85 Jamming Range 8 Power Amplification 20 Additional Mass Support 6 Evasion (%) 69 Recoil Reduction 1 Item Schematics ----------------- None Robot Schematics ------------------ None Fabricated ------------ Nothing Alien Tech Used ----------------- None Achievements -------------- Cya! Prison Break Challenges ------------ None Game ------ Seed StructuralColdScreen Manual? 0 Play Time 00:42:11 Cumulative 23.1 hours Start 2021.04.11 @ 10:50:24 End 2021.04.11 @ 11:30:49 Sessions 1 Manual Loads 0 Difficulty Rogue Special Mode None Game No. 30 Rogue 15 Adventurer 15 Explorer 0 Win Type - Total 0 Types 0/0/0/0/0/0/0/0/0 Lore% 15 Gallery% 28 Achievement% 19 Wizard Run 0 Options --------- ASCII 0 Keyboard 0 Movement Mouse Keybinds 0 Fullscreen 0 Font 20/SmallcapsGlow Map View 113x50 Tactical HUD 1 Map Filters NONE Filters NONE Steam 1 RUN: 5d5922af-2a58-4498-96ce-573efc4b2f3e